[Event "26th Hit Open-A 2022"]
[Site "Nova Gorica"]
[Date "2022.09.17"]
[Round "2.35"]
[White "Markocic, Tine"]
[Black "Budai, Federico"]
[Result "1-0"]
[ECO "C24"]
[WhiteElo "2034"]
[BlackElo "1712"]
[Annotator "TA"]
[PlyCount "61"]
[EventDate "2022.09.16"]
[EventType "swiss"]
[EventCountry "SLO"]
[SourceTitle "playchess.com"]
[Source "ChessBase"]
[SourceQuality "1"]
[TimeControl "5400+30"]

{[%evp 9,61,3,6,0,13,-7,-7,-13,0,-8,16,10,32,17,25,18,35,0,29,14,13,7,13,18,49,34,42,54,77,76,89,49,62,45,70,67,143,104,153,160,274,209,255,235,328,295,303,295,441,441,425,433,393,274]} 1. e4 {[%emt 0:00:07]} e5 {[%emt 0:00:09]} 2. Bc4 {[%emt 0:00:30]} Nf6 {[%emt 0:00:37]} 3. d3 {[%emt 0:00:23]} c6 {[%emt 0:00:13]} 4. Nf3 {[%emt 0:00:37]} d5 {[%emt 0:01:34]} 5. Bb3 {[%emt 0:01:15]} a5 {[%emt 0:01:37][%cal Ba7a5,Ba5a4][%mdl 32] [#] Threatens to win with ...a4.} 6. c3 {[%emt 0:13:15] C24: Bishop's Opening: 2...Nf6.} (6. Nxe5 $2 a4 7. Bxd5 cxd5 8. exd5 Nxd5 $19) 6... Bg4 {[%emt 0:10:52]} 7. h3 {[%emt 0:04:32]} Bxf3 {[%emt 0:03:41]} 8. Qxf3 {[%emt 0:00:05] The position is equal.} a4 {[%emt 0:08:52]} 9. Bc2 {[%emt 0:00:32] [#]} dxe4 $146 {[%emt 0:03:04]} ({Predecessor:} 9... Be7 10. O-O O-O 11. Nd2 a3 12. Rd1 axb2 13. Bxb2 Ba3 14. Rab1 Bxb2 15. Rxb2 Nbd7 16. Rxb7 Rxa2 {½-½ (47) Kotsur,P (2566)-Hovhannisyan,R (2379) Zvenigorod 2008}) 10. dxe4 {[%emt 0:00:05]} Qc7 {[%emt 0:00:23]} 11. Nd2 {[%emt 0:05:20]} Nbd7 {[%emt 0:03:26]} 12. Nf1 {[%emt 0:05:00]} g6 {[%emt 0:13:03]} 13. Ne3 {[%emt 0:03:27]} Bg7 {[%emt 0:01:07]} 14. O-O {[%emt 0:06:40]} O-O {[%emt 0:01:55]} 15. Ng4 {[%emt 0:03:41]} Nxg4 {[%emt 0:03:09]} 16. hxg4 {[%emt 0:00:06]} Nf6 {[%emt 0:08:45]} 17. Rd1 {[%emt 0:06:53]} Qc8 {[%emt 0:11:50]} 18. g5 {[%emt 0:00:13]} Nd7 {[%emt 0:00:53]} 19. Be3 {[%emt 0:09:04][%cal Bc1e3,Be3c5,Bc5d6][%mdl 32]} Qc7 {[%emt 0:04:07]} 20. Rd3 {[%emt 0:05:14][%cal Oc2a4] Bxa4! is the strong threat. White is much more active.} b5 {[%emt 0:16:14]} 21. Rad1 {[%emt 0:02:21]} Nb6 {[%emt 0:02:56]} 22. b3 {[%emt 0:04:18]} Rad8 {[%emt 0:00:50]} (22... axb3 $14 23. axb3 Rfd8) 23. Bc5 $16 {[%emt 0:09:23]} Rfe8 {[%emt 0:01:37]} (23... Rxd3 $142 24. Qxd3 (24. Rxd3 Rd8 $16) 24... Ra8) 24. Qe3 {[%emt 0:01:26]} Nd7 {[%emt 0:01:01]} (24... Rxd3 $16 25. Rxd3 (25. Qxd3 axb3 26. Bxb3 Bf8 $16) 25... Nd7) 25. Bd6 {[%emt 0:00:47]} ({Less strong is} 25. bxa4 Nxc5 26. Qxc5 Rxd3 27. Rxd3 (27. Bxd3 Bf8 $11) 27... Bf8 $16) 25... Qa5 {[%emt 0:00:29]} 26. bxa4 {[%emt 0:00:42]} bxa4 {[%emt 0:00:12]} 27. Bb4 {[%emt 0:00:09] A strong pair of Bishops.} Qc7 {[%emt 0:00:45]} 28. Bxa4 {[%emt 0:00:39] [#] And now Qd2 would win.} Nb6 {[%emt 0:00:29]} (28... Nf8 $142 29. Qc5 Rxd3 30. Rxd3 Ne6 31. Qxc6 Qxc6 32. Bxc6 Rc8) 29. Rxd8 $18 {[%emt 0:00:52]} Rxd8 {[%emt 0:00:11]} 30. Rxd8+ {[%emt 0:00:07]} Qxd8 {[%emt 0:00:04]} 31. Ba5 {[%emt 0:00:38] Weighted Error Value: White=0.10 (very precise) /Black=0.35} 1-0

[Event "26th Hit Open-A 2022"]
[Site "Nova Gorica"]
[Date "2022.09.17"]
[Round "2.36"]
[White "Teo, Hong Ming"]
[Black "Bajec, Borut"]
[Result "1-0"]
[ECO "D36"]
[WhiteElo "2013"]
[BlackElo "1732"]
[Annotator "TA"]
[PlyCount "63"]
[EventDate "2022.09.16"]
[EventType "swiss"]
[EventCountry "SLO"]
[SourceTitle "playchess.com"]
[Source "ChessBase"]
[SourceQuality "1"]
[TimeControl "5400+30"]

{[%evp 18,63,29,11,49,33,21,-3,55,-2,52,50,65,41,54,47,71,36,81,66,63,50,72,-22,-25,0,-24,-10,140,109,106,55,62,61,66,61,64,58,364,354,376,371,376,373,439,427,1516,1483]} 1. d4 {[%emt 0:00:03]} d5 {[%emt 0:01:45]} 2. c4 {[%emt 0:00:10]} e6 {[%emt 0:00:19]} 3. Nc3 {[%emt 0:00:10]} Nf6 {[%emt 0:00:32]} 4. cxd5 {[%emt 0:00:09]} exd5 {[%emt 0:00:44]} 5. Bg5 {[%emt 0:00:10]} Be7 {[%emt 0:00:32]} 6. e3 {[%emt 0:00:15]} O-O {[%emt 0:00:38]} 7. Bd3 {[%emt 0:01:17]} Nbd7 {[%emt 0:01:48]} 8. Qc2 {[%emt 0:00:21]} h6 {[%emt 0:00:40]} 9. Bh4 {[%emt 0:05:13]} c6 {[%emt 0:00:49] 9...c5 is more fashionable.} 10. Nge2 {[%emt 0:00:20]} Nh5 {[%emt 0:02:57] D36: Queen's Gambit Declined: Exchange Variation: Main line (5 Bg5 c6 6 Qc2).} 11. Bxe7 {[%emt 0:12:27]} Qxe7 {[%emt 0:00:21]} 12. O-O-O {[%emt 0:00:45]} a5 {[%emt 0:02:03]} (12... Nhf6 $11) 13. Kb1 {[%emt 0:00:19]} (13. g4 $14 Nhf6 14. Rdg1) 13... b5 {[%emt 0:01:49]} (13... Nb8 $11) 14. g4 {[%emt 0:29:04]} Nhf6 {[%emt 0:10:46]} 15. Rdg1 {[%emt 0:01:33]} b4 {[%emt 0:04:38]} 16. Na4 {[%emt 0:00:12] [#]} Ne4 $146 {[%emt 0:00:15]} ({Predecessor:} 16... c5 17. dxc5 Ne5 18. h3 Bd7 19. Nb6 Rab8 20. Bf5 Bxf5 21. gxf5 Ned7 22. Nxd7 Nxd7 {1-0 (33) Leimeister,E (2213)-Beherzig,R Griesheim 2002}) 17. Bxe4 {[%emt 0:08:18]} ({Don't play} 17. Qxc6 Nxf2 18. Qxa8 Nxd3 19. Qxd5 Nf2 $15) 17... dxe4 {[%emt 0:00:58]} 18. Ng3 {[%emt 0:04:19]} Nf6 {[%emt 0:01:43]} 19. Nf5 {[%emt 0:04:23]} Qd8 {[%emt 0:09:30]} 20. Qxc6 {[%emt 0:05:46]} (20. Rg2 $16) 20... Bd7 $11 {[%emt 0:01:37]} 21. Qc2 {[%emt 0:00:08]} Rc8 {[%emt 0:00:51]} 22. Nc5 {[%emt 0:01:58] Pair of Knights!} Bb5 {[%emt 0:00:40]} ({Black should try} 22... Bxf5 $11 23. gxf5 Qd5) 23. Qd1 {[%emt 0:00:59] Strongly threatening g5.} Bd7 {[%emt 0:04:43]} 24. Nb7 {[%emt 0:02:57] White is more active.} ({White should play} 24. Rg2 $16) 24... Qb6 $1 $14 {[%emt 0:01:41] [#] aiming for ...Bxf5.} 25. Ne7+ {[%emt 0:00:24][%cal Bf5e7,Be7c8,Bc8d6,Bd6c4,Bc4e5,Be5f7][%mdl 32]} Kh8 {[%emt 0:00:08] Hoping for ...Rce8.} 26. Nxc8 {[%emt 0:00:12]} Qxb7 {[%emt 0:01:28]} 27. Nd6 {[%emt 0:00:47]} Qb6 {[%emt 0:02:06][%mdl 8192] This costs Black the game.} (27... Qd5 $14) 28. Nc4 $18 {[%emt 0:00:40]} Qb5 {[%emt 0:00:29]} 29. Ne5 {[%emt 0:00:18] Black must now prevent g5.} Be6 {[%emt 0:00:22]} 30. g5 {[%emt 0:07:18]} hxg5 {[%emt 0:00:13]} 31. Rxg5 {[%emt 0:00:41]} a4 {[%emt 0:00:26] [#]} (31... Bd5 $142 32. h4 Nh7) 32. Nxf7+ $1 {[%emt 0:00:24] Weighted Error Value: White=0.20 (precise) /Black=0.47} 1-0

[Event "26th Hit Open-A 2022"]
[Site "Nova Gorica"]
[Date "2022.09.17"]
[Round "2.37"]
[White "Both, Aaron"]
[Black "Cokan, Mirko"]
[Result "1-0"]
[ECO "B00"]
[WhiteElo "1963"]
[BlackElo "1683"]
[Annotator "TA"]
[PlyCount "73"]
[EventDate "2022.09.16"]
[EventType "swiss"]
[EventCountry "SLO"]
[SourceTitle "playchess.com"]
[Source "ChessBase"]
[SourceQuality "1"]
[TimeControl "5400+30"]

{[%evp 9,73,44,75,70,75,62,79,45,35,33,24,21,33,25,31,4,68,75,116,116,118,113,118,116,121,40,135,45,159,129,275,272,323,321,312,315,533,528,522,509,529,558,566,559,993,1025,1001,985,1147,1142,1449,1444,1238,1210,1597,1588,2325,2254,29985,1825,1723,1592,29990,29991,29993,29993]} 1. e4 {[%emt 0:00:09]} Nc6 {[%emt 0:00:43]} 2. d4 {[%emt 0:02:04][%cal Bd2d4,Bd4d5][%mdl 32]} e5 {[%emt 0:00:48]} 3. d5 {[%emt 0:00:08]} Nce7 {[%emt 0:00:33]} 4. h4 {[%emt 0:00:15]} h5 {[%emt 0:06:45]} 5. Bg5 {[%emt 0:09:52]} f6 {[%emt 0:04:25] [#]} 6. Be3 $146 {[%emt 0:00:16] B00: Queen's Fianchetto Defence, Nimzowitsch Defence.} ({Predecessor:} 6. Bc1 d6 7. f4 exf4 8. Be2 f5 9. Nh3 Nf6 10. Nxf4 fxe4 11. O-O g6 12. Ne6 Bxe6 13. Rxf6 {½-½ (52) Zacinovic,A (2143)-Sitnic,A (2215) Lukavac 2020}) 6... d6 {[%emt 0:00:29]} 7. Be2 {[%emt 0:01:14]} g6 {[%emt 0:00:34]} 8. c4 {[%emt 0:01:48] White is better.} Bh6 {[%emt 0:01:51]} 9. Bxh6 {[%emt 0:05:22]} Nxh6 {[%emt 0:00:41]} 10. Nc3 {[%emt 0:00:33]} O-O {[%emt 0:02:38]} 11. Qd2 {[%emt 0:01:05]} Kg7 {[%emt 0:02:13]} 12. Nh3 {[%emt 0:01:00]} f5 {[%emt 0:04:03]} (12... c6 $11) 13. O-O-O {[%emt 0:11:53]} b6 {[%emt 0:10:33]} 14. f3 {[%emt 0:01:24] White is more active.} f4 {[%emt 0:03:01]} 15. Rdg1 {[%emt 0:01:28]} Bxh3 {[%emt 0:09:25]} 16. Rxh3 {[%emt 0:00:37]} Qd7 {[%emt 0:00:37]} 17. g4 {[%emt 0:02:19]} ({White should try} 17. Rhh1 $16) 17... Kh7 {[%emt 0:01:13]} ({Black should play} 17... Rh8 $14) 18. Rh2 {[%emt 0:01:58]} (18. Bd1 $16) 18... Rf7 {[%emt 0:01:03]} (18... hxg4 $14 19. fxg4 f3) 19. Bf1 {[%emt 0:01:49][%cal Be2f1,Bf1h3,Bh3e6][%mdl 32] aiming for Bh3.} Qd8 {[%emt 0:05:55] This costs Black the game.} (19... Nxg4 $16 20. fxg4 (20. Bh3 Nxh2 21. Bxd7 Nxf3 $16) 20... hxg4) 20. Bh3 {[%emt 0:01:08]} Qf8 {[%emt 0:02:38]} 21. gxh5 {[%emt 0:00:58]} gxh5 {[%emt 0:00:31]} 22. Rhg2 {[%emt 0:00:15] Prevents Rg7.} Qh8 $2 {[%emt 0:07:45] [#]} (22... a6 {was necessary.} 23. Be6 Rf6) 23. Be6 {[%emt 0:00:20]} Rf6 {[%emt 0:01:32]} 24. Rg5 {[%emt 0:02:17]} Rg6 {[%emt 0:04:33]} 25. Qg2 {[%emt 0:04:51][%cal Rg5g6]} Qf6 {[%emt 0:00:27]} 26. Nb5 {[%emt 0:02:21]} Rag8 {[%emt 0:08:07]} 27. Bxg8+ {[%emt 0:00:20]} Rxg8 {[%emt 0:00:04]} 28. Rxg8 {[%emt 0:01:02]} Nexg8 {[%emt 0:01:11]} 29. Nxc7 {[%emt 0:00:31]} Ng4 {[%emt 0:02:24]} 30. fxg4 {[%emt 0:00:42]} f3 {[%emt 0:00:18]} 31. g5 {[%emt 0:03:45]} Qf4+ {[%emt 0:00:54]} 32. Qd2 {[%emt 0:00:06]} f2 {[%emt 0:02:55]} 33. Rf1 {[%emt 0:00:34] [#] White threatens Ne6 and mate.} Qxh4 {[%emt 0:00:23]} 34. Qxf2 {[%emt 0:01:38]} (34. Ne6 $142 Ne7 35. Qxf2 Qxf2 36. Rxf2 Ng6 37. Rf7+ Kh8 38. Rxa7 h4 39. Kd2) 34... Qxg5+ $18 {[%emt 0:01:29]} 35. Kb1 {[%emt 0:00:10] Ne6 would kill now.} Nh6 {[%emt 0:01:33]} 36. Ne6 {[%emt 0:01:26]} Qg4 {[%emt 0:02:13]} 37. Ka1 {[%emt 0:00:40] Weighted Error Value: White=0.14 (very precise) /Black=0.87} 1-0

[Event "26th Hit Open-A 2022"]
[Site "Nova Gorica"]
[Date "2022.09.17"]
[Round "2.39"]
[White "Alexandrova, Angelina"]
[Black "Oestmann, Lukas"]
[Result "1-0"]
[ECO "E65"]
[WhiteElo "1842"]
[BlackElo "1620"]
[Annotator "NA COMBH"]
[PlyCount "89"]
[EventDate "2022.09.16"]
[EventType "swiss"]
[EventCountry "SLO"]
[SourceTitle "playchess.com"]
[Source "ChessBase"]
[SourceQuality "1"]
[TimeControl "5400+30"]

1. Nf3 {[%emt 0:00:04]} Nf6 {[%emt 0:00:05]} 2. g3 {[%emt 0:00:04]} g6 {[%emt 0:00:04]} 3. Bg2 {[%emt 0:00:05]} Bg7 {[%emt 0:00:04]} 4. O-O {[%emt 0:00:08]} O-O {[%emt 0:00:05]} 5. c4 {[%emt 0:00:12]} d6 {[%emt 0:00:25]} 6. d4 {[%emt 0:00:18]} c5 {[%emt 0:00:12]} 7. Nc3 {[%emt 0:01:12]} a6 {[%emt 0:06:16]} 8. dxc5 {[%emt 0:02:39]} dxc5 {[%emt 0:00:23]} 9. Qb3 {[%emt 0:00:25]} Nc6 {[%emt 0:04:51]} 10. Rd1 {[%emt 0:03:52]} Qc7 {[%emt 0:04:03]} 11. Na4 {[%emt 0:09:42]} Nd7 {[%emt 0:08:15]} 12. Bg5 {[%emt 0:03:31]} b5 {[%emt 0:06:52]} 13. cxb5 {[%emt 0:00:46]} axb5 {[%emt 0:00:05]} 14. Nc3 {[%emt 0:00:20]} b4 {[%emt 0:08:43]} 15. Nd5 {[%emt 0:01:02]} Qa7 {[%emt 0:01:30]} 16. Bxe7 {[%emt 0:09:34]} Re8 {[%emt 0:01:54]} 17. Ng5 {[%emt 0:00:28]} Nxe7 {[%emt 0:08:18]} 18. Nc7 {[%emt 0:06:12]} Rf8 {[%emt 0:06:37]} 19. Nxa8 {[%emt 0:05:15]} Ne5 {[%emt 0:03:02]} 20. a3 {[%emt 0:01:34]} c4 {[%emt 0:01:45]} 21. Qxb4 {[%emt 0:00:41]} N7c6 {[%emt 0:00:25]} 22. Qb6 {[%emt 0:06:10]} Qxa8 {[%emt 0:00:31]} 23. f4 {[%emt 0:01:24]} Qa4 {[%emt 0:06:04]} 24. fxe5 {[%emt 0:01:37]} Nxe5 {[%emt 0:00:07]} 25. Rd8 {[%emt 0:03:09]} Bf5 {[%emt 0:01:42]} 26. Qd6 {[%emt 0:07:02]} Qa7+ {[%emt 0:02:54]} 27. Kh1 {[%emt 0:00:05]} Ng4 {[%emt 0:00:38]} 28. Nh3 {[%emt 0:02:11]} Ne3 {[%emt 0:01:28]} 29. Rxf8+ {[%emt 0:06:40]} Bxf8 {[%emt 0:00:09]} 30. Qc6 {[%emt 0:05:21]} Bd7 {[%emt 0:01:11]} 31. Qf3 {[%emt 0:04:43]} Nxg2 {[%emt 0:04:53]} 32. Kxg2 {[%emt 0:10:07]} Qb6 {[%emt 0:00:54]} 33. Ng5 {[%emt 0:05:39]} Bc6 {[%emt 0:00:40]} 34. e4 {[%emt 0:01:45]} f5 {[%emt 0:01:52]} 35. Qc3 {[%emt 0:00:25]} Qb5 {[%emt 0:05:51]} 36. Rc1 {[%emt 0:00:18]} fxe4 {[%emt 0:01:15]} 37. Qxc4+ {[%emt 0:00:15]} Qxc4 {[%emt 0:00:16]} 38. Rxc4 {[%emt 0:00:02]} Bd5 {[%emt 0:00:08]} 39. Rd4 {[%emt 0:00:12]} Bc6 {[%emt 0:01:40]} 40. Nxe4 {[%emt 0:01:17]} Bg7 {[%emt 0:00:18]} 41. Rc4 {[%emt 0:00:30]} Bd5 {[%emt 0:00:14]} 42. Rb4 {[%emt 0:00:11]} Bf8 {[%emt 0:00:43]} 43. Rd4 {[%emt 0:00:12]} Bc6 {[%emt 0:00:09]} 44. Kf3 {[%emt 0:00:10]} Bg7 {[%emt 0:00:14]} 45. Rd2 {[%emt 0:01:43]} 1-0

[Event "26th Hit Open-A 2022"]
[Site "Nova Gorica"]
[Date "2022.09.17"]
[Round "2.41"]
[White "Di Lascio, Savino"]
[Black "Gamal, Alaa"]
[Result "1-0"]
[ECO "A05"]
[WhiteElo "1793"]
[BlackElo "1693"]
[Annotator "NA COMBH"]
[PlyCount "90"]
[EventDate "2022.09.16"]
[EventType "swiss"]
[EventCountry "SLO"]
[SourceTitle "playchess.com"]
[Source "ChessBase"]
[SourceQuality "1"]
[TimeControl "5400+30"]

1. Nf3 {[%emt 0:00:04]} Nf6 {[%emt 0:03:35]} 2. g3 {[%emt 0:00:19]} g6 {[%emt 0:00:10]} 3. b4 {[%emt 0:00:12]} Bg7 {[%emt 0:00:14]} 4. Bb2 {[%emt 0:00:14]} a5 {[%emt 0:00:39]} 5. b5 {[%emt 0:00:32]} a4 {[%emt 0:03:25]} 6. Na3 {[%emt 0:00:33]} d5 {[%emt 0:00:25]} 7. Bg2 {[%emt 0:00:37]} Nbd7 {[%emt 0:02:49]} 8. O-O {[%emt 0:00:54]} Nb6 {[%emt 0:00:30]} 9. d3 {[%emt 0:00:38]} O-O {[%emt 0:06:20]} 10. Rb1 {[%emt 0:00:47]} Bf5 {[%emt 0:03:22]} 11. Nd2 {[%emt 0:01:15]} Qd7 {[%emt 0:03:56]} 12. c4 {[%emt 0:00:31]} Bh3 {[%emt 0:01:24]} 13. c5 {[%emt 0:01:22]} Bxg2 {[%emt 0:00:33]} 14. Kxg2 {[%emt 0:00:25]} Nc8 {[%emt 0:00:19]} 15. e4 {[%emt 0:02:38]} e6 {[%emt 0:01:36]} 16. Qf3 {[%emt 0:01:47]} dxe4 {[%emt 0:04:25]} 17. Nxe4 {[%emt 0:00:55]} Nd5 {[%emt 0:00:35]} 18. Rfc1 {[%emt 0:05:27]} f5 {[%emt 0:10:38]} 19. c6 {[%emt 0:02:36]} bxc6 {[%emt 0:01:31]} 20. bxc6 {[%emt 0:00:09]} Qe7 {[%emt 0:01:54]} 21. Bxg7 {[%emt 0:02:55]} Kxg7 {[%emt 0:02:00]} 22. Nc5 {[%emt 0:01:51]} Ncb6 {[%emt 0:01:51]} 23. Nb5 {[%emt 0:02:55]} f4 {[%emt 0:02:17]} 24. Nxc7 {[%emt 0:02:46]} Nxc7 {[%emt 0:06:07]} 25. Rxb6 {[%emt 0:00:15]} Ra5 {[%emt 0:06:10]} 26. d4 {[%emt 0:03:57]} Qd6 {[%emt 0:00:06]} 27. Rb7 {[%emt 0:02:35]} fxg3 {[%emt 0:02:37]} 28. Rxc7+ {[%emt 0:00:57]} Kg8 {[%emt 0:01:30]} 29. Qxg3 {[%emt 0:00:38]} Qd5+ {[%emt 0:00:53]} 30. Kg1 {[%emt 0:01:20]} Qxd4 {[%emt 0:02:53]} 31. Nxe6 {[%emt 0:02:30]} Qd2 {[%emt 0:02:03]} 32. Rg7+ {[%emt 0:03:15]} Kh8 {[%emt 0:00:06]} 33. Rxh7+ {[%emt 0:01:45]} Kxh7 {[%emt 0:00:50]} 34. Qc7+ {[%emt 0:00:26]} Kh6 {[%emt 0:01:19]} 35. Qg7+ {[%emt 0:00:13]} Kh5 {[%emt 0:00:13]} 36. Qh7+ {[%emt 0:00:16]} Kg4 {[%emt 0:06:32]} 37. Qxg6+ {[%emt 0:00:38]} Kf3 {[%emt 0:03:53]} 38. Rc3+ {[%emt 0:03:14]} Qxc3 {[%emt 0:06:09]} 39. Qg3+ {[%emt 0:00:14]} Ke2 {[%emt 0:00:11]} 40. Qxc3 {[%emt 0:00:40]} Rg8+ {[%emt 0:00:05]} 41. Kh1 {[%emt 0:01:17]} Kxf2 {[%emt 0:02:58]} 42. h4 {[%emt 0:02:37]} Rg3 {[%emt 0:03:04]} 43. Qd2+ {[%emt 0:02:20]} Kf1 {[%emt 0:05:50]} 44. Qf4+ {[%emt 0:00:35]} Ke2 {[%emt 0:01:05]} 45. Qxg3 {[%emt 0:00:21]} Re5 {[%emt 0:00:11]} 1-0

[Event "26th Hit Open-A 2022"]
[Site "Nova Gorica"]
[Date "2022.09.17"]
[Round "2.42"]
[White "Mocic, Ivano"]
[Black "Fiolo, Costanza"]
[Result "0-1"]
[ECO "A35"]
[WhiteElo "1672"]
[BlackElo "1768"]
[Annotator "NA COMBH"]
[PlyCount "94"]
[EventDate "2022.09.16"]
[EventType "swiss"]
[EventCountry "SLO"]
[SourceTitle "playchess.com"]
[Source "ChessBase"]
[SourceQuality "1"]
[TimeControl "5400+30"]

1. c4 {[%emt 0:00:09]} c5 {[%emt 0:00:25]} 2. Nf3 {[%emt 0:00:25]} Nc6 {[%emt 0:01:57]} 3. Nc3 {[%emt 0:00:10]} g6 {[%emt 0:01:23]} 4. e3 {[%emt 0:01:24]} Bg7 {[%emt 0:05:06]} 5. d3 {[%emt 0:04:12]} d6 {[%emt 0:01:00]} 6. g3 {[%emt 0:00:55]} e6 {[%emt 0:00:46]} 7. Bg2 {[%emt 0:00:15]} Nge7 {[%emt 0:00:17]} 8. O-O {[%emt 0:01:01]} O-O {[%emt 0:00:30]} 9. a3 {[%emt 0:04:36]} b6 {[%emt 0:03:52]} 10. Bd2 {[%emt 0:01:21]} Bb7 {[%emt 0:00:43]} 11. Rb1 {[%emt 0:00:56]} Qd7 {[%emt 0:02:51]} 12. b4 {[%emt 0:01:14]} Rad8 {[%emt 0:04:16]} 13. Qe2 {[%emt 0:02:02]} Ne5 {[%emt 0:09:15]} 14. Nxe5 {[%emt 0:03:26]} Bxe5 {[%emt 0:00:42]} 15. Rbd1 {[%emt 0:10:31]} Bxg2 {[%emt 0:02:34]} 16. Kxg2 {[%emt 0:00:29]} Nc6 {[%emt 0:04:32]} 17. b5 {[%emt 0:06:37]} Ne7 {[%emt 0:04:21]} 18. f4 {[%emt 0:03:30]} Bg7 {[%emt 0:00:20]} 19. Na2 {[%emt 0:07:26]} d5 {[%emt 0:05:11]} 20. Bc1 {[%emt 0:07:06]} Nf5 {[%emt 0:03:05]} 21. Rfe1 {[%emt 0:09:05]} Rfe8 {[%emt 0:03:22]} 22. Qf3 {[%emt 0:05:29]} Qc7 {[%emt 0:09:39]} 23. Kg1 {[%emt 0:06:27]} Rd7 {[%emt 0:04:50]} 24. g4 {[%emt 0:01:13]} Ne7 {[%emt 0:01:03]} 25. Qg2 {[%emt 0:03:00]} Red8 {[%emt 0:00:27]} 26. Qe2 {[%emt 0:01:35]} f5 {[%emt 0:06:52]} 27. g5 {[%emt 0:03:54]} e5 {[%emt 0:01:06]} 28. Rf1 {[%emt 0:04:00]} Nc8 {[%emt 0:02:35]} 29. e4 {[%emt 0:02:59]} dxe4 {[%emt 0:01:36]} 30. dxe4 {[%emt 0:00:08]} Rxd1 {[%emt 0:01:40]} 31. Rxd1 {[%emt 0:00:02]} Rxd1+ {[%emt 0:00:29]} 32. Qxd1 {[%emt 0:00:02]} Qd6 {[%emt 0:01:30]} 33. Qxd6 {[%emt 0:02:47]} Nxd6 {[%emt 0:00:11]} 34. exf5 {[%emt 0:00:19]} gxf5 {[%emt 0:00:24]} 35. fxe5 {[%emt 0:02:59]} Bxe5 {[%emt 0:00:22]} 36. Kg2 {[%emt 0:00:53]} Nxc4 {[%emt 0:00:17]} 37. h4 {[%emt 0:00:28]} Kf7 {[%emt 0:01:37]} 38. h5 {[%emt 0:00:44]} Nd6 {[%emt 0:02:18]} 39. a4 {[%emt 0:00:19]} Ne4 {[%emt 0:01:26]} 40. Kf3 {[%emt 0:00:47]} Ke6 {[%emt 0:00:58]} 41. h6 {[%emt 0:01:47]} Kf7 {[%emt 0:00:45]} 42. Be3 {[%emt 0:00:33]} Kg6 {[%emt 0:02:34]} 43. Nc1 {[%emt 0:00:34]} Nxg5+ {[%emt 0:00:55]} 44. Ke2 {[%emt 0:00:17]} Ne4 {[%emt 0:01:24]} 45. Nd3 {[%emt 0:00:58]} Bb8 {[%emt 0:01:49]} 46. Nb2 {[%emt 0:01:06]} f4 {[%emt 0:00:42]} 47. Bg1 {[%emt 0:00:14]} Kxh6 {[%emt 0:01:04]} 0-1

[Event "26th Hit Open-A 2022"]
[Site "Nova Gorica"]
[Date "2022.09.17"]
[Round "2.43"]
[White "Ivsek, Cveto"]
[Black "Mihelj, Edvard"]
[Result "1-0"]
[ECO "A40"]
[WhiteElo "1763"]
[BlackElo "1657"]
[Annotator "NA COMBH"]
[PlyCount "105"]
[EventDate "2022.09.16"]
[EventType "swiss"]
[EventCountry "SLO"]
[SourceTitle "playchess.com"]
[Source "ChessBase"]
[SourceQuality "1"]
[TimeControl "5400+30"]

1. d4 {[%emt 0:00:19]} b6 {[%emt 0:00:12]} 2. Bf4 {[%emt 0:00:52]} g6 {[%emt 0:02:31]} 3. e3 {[%emt 0:01:02]} Bb7 {[%emt 0:00:35]} 4. Nf3 {[%emt 0:00:22]} Bg7 {[%emt 0:00:36]} 5. Bc4 {[%emt 0:00:56]} d5 {[%emt 0:01:16]} 6. Bd3 {[%emt 0:03:21]} Nd7 {[%emt 0:02:25]} 7. O-O {[%emt 0:01:15]} e6 {[%emt 0:01:55]} 8. a4 {[%emt 0:06:55]} c5 {[%emt 0:08:06]} 9. c3 {[%emt 0:01:21]} c4 {[%emt 0:00:27]} 10. Bc2 {[%emt 0:00:50]} a6 {[%emt 0:03:01]} 11. Nbd2 {[%emt 0:02:21]} Ne7 {[%emt 0:01:45]} 12. e4 {[%emt 0:01:43]} O-O {[%emt 0:02:22]} 13. e5 {[%emt 0:02:16]} b5 {[%emt 0:06:21]} 14. axb5 {[%emt 0:01:41]} axb5 {[%emt 0:00:09]} 15. Rxa8 {[%emt 0:07:57]} Qxa8 {[%emt 0:00:12]} 16. Qa1 {[%emt 0:00:07]} Qxa1 {[%emt 0:00:16]} 17. Rxa1 {[%emt 0:00:05]} Ra8 {[%emt 0:00:05]} 18. Rxa8+ {[%emt 0:00:06]} Bxa8 {[%emt 0:00:07]} 19. b4 {[%emt 0:05:29]} Bc6 {[%emt 0:01:38]} 20. Kf1 {[%emt 0:00:00]} Nb6 {[%emt 0:02:24]} 21. Bg5 {[%emt 0:02:32]} Nec8 {[%emt 0:01:27]} 22. Ke1 {[%emt 0:02:14]} Nd7 {[%emt 0:01:12]} 23. h3 {[%emt 0:01:10]} Bf8 {[%emt 0:00:59]} 24. Nh2 {[%emt 0:00:38]} Be7 {[%emt 0:00:48]} 25. Bf4 {[%emt 0:01:57]} f5 {[%emt 0:06:02]} 26. Ndf3 {[%emt 0:04:53]} Kg7 {[%emt 0:04:34]} 27. Bg5 {[%emt 0:01:50]} Bxg5 {[%emt 0:06:48]} 28. Nxg5 {[%emt 0:00:07]} Nf8 {[%emt 0:00:18]} 29. h4 {[%emt 0:04:42]} h6 {[%emt 0:00:53]} 30. Nh3 {[%emt 0:00:13]} Nh7 {[%emt 0:04:50]} 31. Nf3 {[%emt 0:06:12]} Ne7 {[%emt 0:01:39]} 32. Ke2 {[%emt 0:00:49]} Be8 {[%emt 0:01:11]} 33. Ke3 {[%emt 0:00:36]} Bd7 {[%emt 0:02:22]} 34. Kf4 {[%emt 0:00:34]} Nc8 {[%emt 0:00:46]} 35. Ke3 {[%emt 0:00:44]} Ne7 {[%emt 0:01:10]} 36. Nh2 {[%emt 0:00:47]} Nc8 {[%emt 0:03:55]} 37. f3 {[%emt 0:01:05]} Ne7 {[%emt 0:00:40]} 38. g4 {[%emt 0:00:23]} fxg4 {[%emt 0:02:47]} 39. fxg4 {[%emt 0:00:55]} h5 {[%emt 0:03:17]} 40. gxh5 {[%emt 0:03:57]} gxh5 {[%emt 0:00:21]} 41. Nf4 {[%emt 0:00:37]} Kh6 {[%emt 0:00:36]} 42. Bxh7 {[%emt 0:01:19]} Kxh7 {[%emt 0:00:26]} 43. Nxh5 {[%emt 0:00:18]} Nf5+ {[%emt 0:04:22]} 44. Kf4 {[%emt 0:02:32]} Kg6 {[%emt 0:01:35]} 45. Nf6 {[%emt 0:00:40]} Bc8 {[%emt 0:00:27]} 46. h5+ {[%emt 0:00:47]} Kg7 {[%emt 0:01:42]} 47. Nhg4 {[%emt 0:00:54]} Kh8 {[%emt 0:01:04]} 48. Ne8 {[%emt 0:03:24]} Bd7 {[%emt 0:02:24]} 49. Nd6 {[%emt 0:01:33]} Bc6 {[%emt 0:01:44]} 50. Nxf5 {[%emt 0:00:22]} exf5 {[%emt 0:00:06]} 51. Kxf5 {[%emt 0:00:10]} Kh7 {[%emt 0:00:34]} 52. e6 {[%emt 0:00:41]} Be8 {[%emt 0:00:26]} 53. Nf6+ {[%emt 0:00:07]} 1-0